[Event "Titled Tuesday Blitz February 15 Late 2022"]
[White "Chigaev, Maksim"]
[Black "Hambleton, Aman"]
[WhiteFideId "4108116"]
[BlackFideId "2606577"]
[WhiteElo "2502"]
[BlackElo "2552"]
[Result "1-0"]
[Round "02"]
[TimeControl "180+1"]
[Date "2022.02.15"]
[WhiteClock "0:00:05"]
[BlackClock "0:00:01"]

1. c4 {[%clk 0:03:00]}  c5 {[%clk 0:02:51]} 2. Nf3 {[%clk 0:02:59]}  b6 {[%clk 0:02:50]} 3. Nc3 {[%clk 0:02:56]}  Bb7 {[%clk 0:02:49]} 4. e4 {[%clk 0:02:56]}  e6 {[%clk 0:02:49]} 5. Bd3 {[%clk 0:02:56]}  d6 {[%clk 0:02:37]} 6. O-O {[%clk 0:02:57]}  Nf6 {[%clk 0:02:36]} 7. Re1 {[%clk 0:02:56]}  Be7 {[%clk 0:02:30]} 8. Bc2 {[%clk 0:02:56]}  a6 {[%clk 0:02:30]} 9. b3 {[%clk 0:02:55]}  Nbd7 {[%clk 0:02:27]} 10. d4 {[%clk 0:02:55]}  cxd4 {[%clk 0:02:27]} 11. Nxd4 {[%clk 0:02:56]}  O-O {[%clk 0:02:26]} 12. Bb2 {[%clk 0:02:55]}  Rc8 {[%clk 0:02:26]} 13. Kh1 {[%clk 0:02:54]}  Re8 {[%clk 0:02:18]} 14. f4 {[%clk 0:02:51]}  Qc7 {[%clk 0:02:14]} 15. Qf3 {[%clk 0:02:45]}  Bf8 {[%clk 0:02:05]} 16. Rad1 {[%clk 0:02:36]}  g6 {[%clk 0:01:54]} 17. Qh3 {[%clk 0:01:59]}  h5 {[%clk 0:01:14]} 18. Qg3 {[%clk 0:01:47]}  Bg7 {[%clk 0:01:06]} 19. h3 {[%clk 0:01:41]}  e5 {[%clk 0:00:57]} 20. Nde2 {[%clk 0:01:24]}  exf4 {[%clk 0:00:43]} 21. Qxf4 {[%clk 0:01:11]}  Ne5 {[%clk 0:00:24]} 22. Bb1 {[%clk 0:01:11]}  Qe7 {[%clk 0:00:15]} 23. a4 {[%clk 0:01:03]}  Nfd7 {[%clk 0:00:13]} 24. Nd4 {[%clk 0:00:56]}  Nc5 {[%clk 0:00:13]} 25. Ba3 {[%clk 0:00:51]}  Rcd8 {[%clk 0:00:10]} 26. Qg3 {[%clk 0:00:50]}  Kh7 {[%clk 0:00:08]} 27. b4 {[%clk 0:00:32]}  Ne6 {[%clk 0:00:07]} 28. Nd5 {[%clk 0:00:32]}  Bxd5 {[%clk 0:00:06]} 29. Nf5 {[%clk 0:00:17]}  Qf6 {[%clk 0:00:02]} 30. exd5 {[%clk 0:00:08]}  gxf5 {[%clk 0:00:01]} 31. dxe6 {[%clk 0:00:08]}  fxe6 {[%clk 0:00:02]} 32. Bb2 {[%clk 0:00:06]}  Qg6 {[%clk 0:00:03]} 33. Qb3 {[%clk 0:00:05]}  a5 {[%clk 0:00:02]} 34. bxa5 {[%clk 0:00:05]}  bxa5 {[%clk 0:00:03]} 35. Bc3 {[%clk 0:00:05]}  Rb8 {[%clk 0:00:04]} 36. Qa2 {[%clk 0:00:05]}  Rb6 {[%clk 0:00:02]} 37. c5 {[%clk 0:00:05]}  Rc6 {[%clk 0:00:02]} 38. Rxd6 {[%clk 0:00:04]}  Rxc5 {[%clk 0:00:01]} 39. Bd4 {[%clk 0:00:04]}  Rd5 {[%clk 0:00:01]} 40. Rxd5 {[%clk 0:00:04]}  exd5 {[%clk 0:00:02]} 41. Qxd5 {[%clk 0:00:04]}  Re7 {[%clk 0:00:01]} 42. Bxe5 {[%clk 0:00:04]}  Rxe5 {[%clk 0:00:01]} 43. Rxe5 {[%clk 0:00:05]}  Bxe5 {[%clk 0:00:01]} 44. Qxe5 {[%clk 0:00:05]} 1-0


[Site "https://www.chess.com"]

[Event "Titled Tuesday Blitz February 15 Late 2022"]
[White "Coelho, Ramyres Santana"]
[Black "Degardin, Sylvain"]
[WhiteFideId "2120690"]
[BlackFideId "20623070"]
[WhiteElo "1888"]
[BlackElo "2156"]
[Result "0-1"]
[Round "02"]
[TimeControl "180+1"]
[Date "2022.02.16"]
[WhiteClock "0:00:58"]
[BlackClock "0:01:57"]

1. e4 {[%clk 0:03:00]}  c5 {[%clk 0:02:59]} 2. Nf3 {[%clk 0:02:55]}  d6 {[%clk 0:02:58]} 3. d4 {[%clk 0:02:55]}  cxd4 {[%clk 0:02:58]} 4. Nxd4 {[%clk 0:02:56]}  Nf6 {[%clk 0:02:59]} 5. Nc3 {[%clk 0:02:55]}  a6 {[%clk 0:02:59]} 6. f3 {[%clk 0:02:56]}  e5 {[%clk 0:02:58]} 7. Nb3 {[%clk 0:02:56]}  Be6 {[%clk 0:02:57]} 8. Be3 {[%clk 0:02:56]}  h5 {[%clk 0:02:56]} 9. Qd2 {[%clk 0:02:57]}  Be7 {[%clk 0:02:55]} 10. O-O-O {[%clk 0:02:57]}  Nbd7 {[%clk 0:02:55]} 11. h3 {[%clk 0:02:56]}  h4 {[%clk 0:02:54]} 12. f4 {[%clk 0:02:55]}  Qc7 {[%clk 0:02:50]} 13. f5 {[%clk 0:02:48]}  Bc4 {[%clk 0:02:49]} 14. Nd5 {[%clk 0:02:41]}  Bxd5 {[%clk 0:02:38]} 15. exd5 {[%clk 0:02:41]}  a5 {[%clk 0:02:35]} 16. a4 {[%clk 0:02:38]}  Ne4 {[%clk 0:02:30]} 17. Qe1 {[%clk 0:02:26]}  Rc8 {[%clk 0:02:25]} 18. Bd3 {[%clk 0:02:25]}  Ndc5 {[%clk 0:02:22]} 19. Bxc5 {[%clk 0:02:18]}  Nxc5 {[%clk 0:02:23]} 20. Bb5+ {[%clk 0:02:15]}  Kf8 {[%clk 0:02:21]} 21. Nxc5 {[%clk 0:02:14]}  Qxc5 {[%clk 0:02:19]} 22. c4 {[%clk 0:02:05]}  Bf6 {[%clk 0:02:15]} 23. Qxa5 {[%clk 0:02:01]}  Rh5 {[%clk 0:02:09]} 24. Kb1 {[%clk 0:01:50]}  Rg5 {[%clk 0:02:06]} 25. b4 {[%clk 0:01:42]}  Qe3 {[%clk 0:02:02]} 26. Rhe1 {[%clk 0:01:24]}  Qb3+ {[%clk 0:02:00]} 27. Kc1 {[%clk 0:01:21]}  Rxg2 {[%clk 0:01:59]} 28. Rd2 {[%clk 0:00:59]}  Qc3+ {[%clk 0:01:58]} 29. Kb1 {[%clk 0:00:58]}  Rxd2 {[%clk 0:01:57]} 0-1


[Site "https://www.chess.com"]

[Event "Titled Tuesday Blitz February 15 Late 2022"]
[White "Debray, Christopher"]
[Black "Zhigalko, Sergei"]
[WhiteFideId "630810"]
[BlackFideId "13502956"]
[WhiteElo "2369"]
[BlackElo "2662"]
[Result "0-1"]
[Round "02"]
[TimeControl "180+1"]
[Date "2022.02.15"]
[WhiteClock "0:00:55"]
[BlackClock "0:00:26"]

1. d4 {[%clk 0:03:00]}  Nf6 {[%clk 0:03:00]} 2. Bf4 {[%clk 0:03:00]}  e6 {[%clk 0:02:59]} 3. e3 {[%clk 0:03:00]}  d5 {[%clk 0:02:59]} 4. Nd2 {[%clk 0:02:59]}  Bd6 {[%clk 0:03:00]} 5. Bg3 {[%clk 0:02:58]}  O-O {[%clk 0:03:00]} 6. c3 {[%clk 0:02:58]}  b6 {[%clk 0:02:59]} 7. Ngf3 {[%clk 0:02:58]}  Bb7 {[%clk 0:02:59]} 8. Bd3 {[%clk 0:02:59]}  c5 {[%clk 0:02:59]} 9. Ne5 {[%clk 0:02:57]}  Nc6 {[%clk 0:02:59]} 10. f4 {[%clk 0:02:55]}  Ne7 {[%clk 0:02:58]} 11. O-O {[%clk 0:02:55]}  Nf5 {[%clk 0:02:58]} 12. Bf2 {[%clk 0:02:48]}  Be7 {[%clk 0:02:58]} 13. g4 {[%clk 0:02:41]}  Nd6 {[%clk 0:02:57]} 14. Qf3 {[%clk 0:02:37]}  Nfe4 {[%clk 0:02:57]} 15. Rad1 {[%clk 0:02:30]}  f6 {[%clk 0:02:57]} 16. g5 {[%clk 0:02:15]}  fxe5 {[%clk 0:02:54]} 17. dxe5 {[%clk 0:02:15]}  Nxd2 {[%clk 0:02:35]} 18. Rxd2 {[%clk 0:02:12]}  Ne4 {[%clk 0:02:14]} 19. Bxe4 {[%clk 0:01:57]}  dxe4 {[%clk 0:02:15]} 20. Rxd8 {[%clk 0:01:57]}  exf3 {[%clk 0:02:15]} 21. Rd7 {[%clk 0:01:58]}  Ba6 {[%clk 0:02:16]} 22. Rxe7 {[%clk 0:01:57]}  Bxf1 {[%clk 0:02:15]} 23. Kxf1 {[%clk 0:01:58]}  Rfe8 {[%clk 0:02:08]} 24. Rd7 {[%clk 0:01:55]}  Red8 {[%clk 0:02:06]} 25. Re7 {[%clk 0:01:54]}  Rd2 {[%clk 0:02:01]} 26. Rxe6 {[%clk 0:01:47]}  Rad8 {[%clk 0:02:00]} 27. Be1 {[%clk 0:01:47]}  Rxb2 {[%clk 0:01:47]} 28. f5 {[%clk 0:01:28]}  f2 {[%clk 0:00:54]} 29. Bxf2 {[%clk 0:01:12]}  Rd1+ {[%clk 0:00:54]} 30. Be1 {[%clk 0:00:53]}  Rbb1 {[%clk 0:00:50]} 31. g6 {[%clk 0:00:52]}  Rxe1+ {[%clk 0:00:50]} 32. Kg2 {[%clk 0:00:50]}  hxg6 {[%clk 0:00:49]} 33. fxg6 {[%clk 0:00:51]}  Kf8 {[%clk 0:00:46]} 34. Rd6 {[%clk 0:00:52]}  Ke7 {[%clk 0:00:45]} 35. Rc6 {[%clk 0:00:51]}  Rxe3 {[%clk 0:00:28]} 36. Rc7+ {[%clk 0:00:51]}  Ke6 {[%clk 0:00:28]} 37. Rxg7 {[%clk 0:00:51]}  Rxe5 {[%clk 0:00:28]} 38. Rxa7 {[%clk 0:00:51]}  Rg5+ {[%clk 0:00:27]} 39. Kf3 {[%clk 0:00:51]}  Rxg6 {[%clk 0:00:27]} 40. Rb7 {[%clk 0:00:52]}  Rh6 {[%clk 0:00:27]} 41. h4 {[%clk 0:00:53]}  Rxh4 {[%clk 0:00:27]} 42. Kg3 {[%clk 0:00:54]}  Ra4 {[%clk 0:00:27]} 43. Rxb6+ {[%clk 0:00:55]}  Rxb6 {[%clk 0:00:26]} 0-1


[Site "https://www.chess.com"]

[Event "Titled Tuesday Blitz February 15 Late 2022"]
[White "Delaney, Killian"]
[Black "Ponkratov, Pavel"]
[WhiteFideId "2501570"]
[BlackFideId "4157800"]
[WhiteElo "2306"]
[BlackElo "2487"]
[Result "1/2-1/2"]
[Round "02"]
[TimeControl "180+1"]
[Date "2022.02.16"]
[WhiteClock "0:02:23"]
[BlackClock "0:02:41"]

1. e4 {[%clk 0:03:00]}  c5 {[%clk 0:02:56]} 2. Nf3 {[%clk 0:03:00]}  a6 {[%clk 0:02:57]} 3. c3 {[%clk 0:02:59]}  d5 {[%clk 0:02:55]} 4. exd5 {[%clk 0:03:00]}  Qxd5 {[%clk 0:02:55]} 5. d4 {[%clk 0:03:00]}  e6 {[%clk 0:02:56]} 6. Be3 {[%clk 0:02:57]}  cxd4 {[%clk 0:02:53]} 7. cxd4 {[%clk 0:02:58]}  Nf6 {[%clk 0:02:53]} 8. Nc3 {[%clk 0:02:58]}  Qh5 {[%clk 0:02:52]} 9. Be2 {[%clk 0:02:57]}  Nc6 {[%clk 0:02:49]} 10. Ne5 {[%clk 0:02:54]}  Qh4 {[%clk 0:02:49]} 11. g3 {[%clk 0:02:36]}  Qh3 {[%clk 0:02:48]} 12. Bf1 {[%clk 0:02:32]}  Qf5 {[%clk 0:02:48]} 13. Bd3 {[%clk 0:02:31]}  Qh5 {[%clk 0:02:45]} 14. Be2 {[%clk 0:02:29]}  Qh3 {[%clk 0:02:45]} 15. Bf1 {[%clk 0:02:25]}  Qh5 {[%clk 0:02:45]} 16. Be2 {[%clk 0:02:23]}  Qh3 {[%clk 0:02:41]} 1/2-1/2


[Site "https://www.chess.com"]

[Event "Titled Tuesday Blitz February 15 Late 2022"]
[White "Demchenko, Anton"]
[Black "Michelakos, Panagiotis"]
[WhiteFideId "4160258"]
[BlackFideId "4216067"]
[WhiteElo "2539"]
[BlackElo "2140"]
[Result "0-1"]
[Round "02"]
[TimeControl "180+1"]
[Date "2022.02.15"]
[WhiteClock "0:00:04"]
[BlackClock "0:00:06"]

1. e4 {[%clk 0:03:00]}  c5 {[%clk 0:02:59]} 2. Nf3 {[%clk 0:03:00]}  g6 {[%clk 0:02:59]} 3. Bc4 {[%clk 0:02:58]}  Nc6 {[%clk 0:02:57]} 4. c3 {[%clk 0:02:57]}  Bg7 {[%clk 0:02:53]} 5. O-O {[%clk 0:02:58]}  d6 {[%clk 0:02:48]} 6. d4 {[%clk 0:02:57]}  Nf6 {[%clk 0:02:44]} 7. Re1 {[%clk 0:02:43]}  cxd4 {[%clk 0:02:41]} 8. cxd4 {[%clk 0:02:37]}  Bg4 {[%clk 0:02:41]} 9. d5 {[%clk 0:02:12]}  Ne5 {[%clk 0:02:34]} 10. Bb5+ {[%clk 0:02:09]}  Nfd7 {[%clk 0:02:30]} 11. Nc3 {[%clk 0:01:59]}  O-O {[%clk 0:02:23]} 12. Be2 {[%clk 0:01:44]}  Bxf3 {[%clk 0:02:17]} 13. gxf3 {[%clk 0:01:42]}  Rc8 {[%clk 0:02:17]} 14. Be3 {[%clk 0:01:36]}  a6 {[%clk 0:02:08]} 15. Bd4 {[%clk 0:01:03]}  b5 {[%clk 0:01:49]} 16. a4 {[%clk 0:00:52]}  Rc4 {[%clk 0:01:27]} 17. Bxc4 {[%clk 0:00:47]}  bxc4 {[%clk 0:01:25]} 18. Kh1 {[%clk 0:00:32]}  Nd3 {[%clk 0:01:17]} 19. Be3 {[%clk 0:00:20]}  Nxe1 {[%clk 0:01:14]} 20. Qxe1 {[%clk 0:00:20]}  Ne5 {[%clk 0:01:15]} 21. Qe2 {[%clk 0:00:19]}  Nd3 {[%clk 0:01:10]} 22. f4 {[%clk 0:00:12]}  Qd7 {[%clk 0:00:52]} 23. Rd1 {[%clk 0:00:02]}  Rb8 {[%clk 0:00:49]} 24. Rd2 {[%clk 0:00:03]}  Qh3 {[%clk 0:00:43]} 25. Rc2 {[%clk 0:00:02]}  Bxc3 {[%clk 0:00:31]} 26. Rxc3 {[%clk 0:00:02]}  Rxb2 {[%clk 0:00:31]} 27. Qd1 {[%clk 0:00:02]}  Rxf2 {[%clk 0:00:19]} 28. Bxf2 {[%clk 0:00:01]}  Nxf2+ {[%clk 0:00:14]} 29. Kg1 {[%clk 0:00:02]}  Qxc3 {[%clk 0:00:14]} 30. Kxf2 {[%clk 0:00:02]}  Qb2+ {[%clk 0:00:13]} 31. Ke3 {[%clk 0:00:03]}  c3 {[%clk 0:00:13]} 32. Kd3 {[%clk 0:00:03]}  Qxh2 {[%clk 0:00:07]} 33. Kxc3 {[%clk 0:00:03]}  Qxf4 {[%clk 0:00:07]} 34. Kd3 {[%clk 0:00:03]}  Qg3+ {[%clk 0:00:07]} 35. Kc4 {[%clk 0:00:03]}  Qa3 {[%clk 0:00:07]} 36. Qc2 {[%clk 0:00:03]}  Qc5+ {[%clk 0:00:05]} 37. Kd3 {[%clk 0:00:03]}  Qxc2+ {[%clk 0:00:06]} 38. Kxc2 {[%clk 0:00:04]}  h5 {[%clk 0:00:06]} 0-1


[Site "https://www.chess.com"]

[Event "Titled Tuesday Blitz February 15 Late 2022"]
[White "Dubov, Daniil"]
[Black "Matinian, Nikita"]
[WhiteFideId "24126055"]
[BlackFideId "24129100"]
[WhiteElo "2791"]
[BlackElo "2422"]
[Result "1-0"]
[Round "02"]
[TimeControl "180+1"]
[Date "2022.02.15"]
[WhiteClock "0:00:06"]
[BlackClock "0:00:05"]

1. d4 {[%clk 0:02:59]}  Nf6 {[%clk 0:02:58]} 2. Bf4 {[%clk 0:03:00]}  g6 {[%clk 0:02:57]} 3. Nc3 {[%clk 0:02:59]}  d5 {[%clk 0:02:57]} 4. e3 {[%clk 0:02:57]}  c6 {[%clk 0:02:56]} 5. Be2 {[%clk 0:02:52]}  Nbd7 {[%clk 0:02:51]} 6. h4 {[%clk 0:02:52]}  h5 {[%clk 0:02:51]} 7. Nf3 {[%clk 0:02:50]}  Bg7 {[%clk 0:02:51]} 8. Ne5 {[%clk 0:02:50]}  Qb6 {[%clk 0:02:47]} 9. a3 {[%clk 0:02:45]}  Nxe5 {[%clk 0:02:41]} 10. Bxe5 {[%clk 0:02:45]}  Bf5 {[%clk 0:02:35]} 11. Rb1 {[%clk 0:02:38]}  a5 {[%clk 0:02:26]} 12. O-O {[%clk 0:02:35]}  O-O {[%clk 0:02:25]} 13. f3 {[%clk 0:02:23]}  Qd8 {[%clk 0:02:07]} 14. Qd2 {[%clk 0:02:15]}  a4 {[%clk 0:02:04]} 15. Rbe1 {[%clk 0:02:14]}  e6 {[%clk 0:01:55]} 16. Nd1 {[%clk 0:02:12]}  Nd7 {[%clk 0:01:48]} 17. Bxg7 {[%clk 0:02:06]}  Kxg7 {[%clk 0:01:48]} 18. g3 {[%clk 0:02:05]}  e5 {[%clk 0:01:47]} 19. Nf2 {[%clk 0:01:59]}  exd4 {[%clk 0:01:43]} 20. exd4 {[%clk 0:01:59]}  Qc7 {[%clk 0:01:24]} 21. Kg2 {[%clk 0:01:58]}  Rae8 {[%clk 0:01:24]} 22. Bd3 {[%clk 0:01:53]}  Bxd3 {[%clk 0:01:22]} 23. Nxd3 {[%clk 0:01:53]}  Qd6 {[%clk 0:01:11]} 24. Qb4 {[%clk 0:01:50]}  Qxb4 {[%clk 0:01:09]} 25. Nxb4 {[%clk 0:01:50]}  Nb6 {[%clk 0:01:06]} 26. Kf2 {[%clk 0:01:46]}  Nc4 {[%clk 0:01:05]} 27. Nd3 {[%clk 0:01:46]}  f6 {[%clk 0:00:55]} 28. Nc5 {[%clk 0:01:42]}  Kf7 {[%clk 0:00:39]} 29. Nd3 {[%clk 0:01:28]}  Rxe1 {[%clk 0:00:35]} 30. Rxe1 {[%clk 0:01:28]}  Re8 {[%clk 0:00:35]} 31. Ra1 {[%clk 0:01:27]}  Ra8 {[%clk 0:00:34]} 32. Nc5 {[%clk 0:01:22]}  Nxb2 {[%clk 0:00:30]} 33. Rb1 {[%clk 0:01:13]}  Nc4 {[%clk 0:00:30]} 34. Rxb7+ {[%clk 0:01:13]}  Kg8 {[%clk 0:00:31]} 35. Nd7 {[%clk 0:01:13]}  Nxa3 {[%clk 0:00:27]} 36. Nxf6+ {[%clk 0:01:13]}  Kf8 {[%clk 0:00:28]} 37. Nd7+ {[%clk 0:00:21]}  Kg8 {[%clk 0:00:22]} 38. Nf6+ {[%clk 0:00:19]}  Kf8 {[%clk 0:00:22]} 39. Nd7+ {[%clk 0:00:19]}  Kg8 {[%clk 0:00:22]} 40. Ke3 {[%clk 0:00:20]}  Nc4+ {[%clk 0:00:18]} 41. Kf4 {[%clk 0:00:20]}  a3 {[%clk 0:00:19]} 42. Kg5 {[%clk 0:00:19]}  Nd6 {[%clk 0:00:12]} 43. Nf6+ {[%clk 0:00:16]}  Kf8 {[%clk 0:00:12]} 44. Rd7 {[%clk 0:00:16]}  a2 {[%clk 0:00:10]} 45. Nh7+ {[%clk 0:00:15]}  Ke8 {[%clk 0:00:09]} 46. Nf6+ {[%clk 0:00:15]}  Kf8 {[%clk 0:00:09]} 47. Kxg6 {[%clk 0:00:15]}  a1=Q {[%clk 0:00:08]} 48. Nh7+ {[%clk 0:00:16]}  Ke8 {[%clk 0:00:08]} 49. Nf6+ {[%clk 0:00:17]}  Kf8 {[%clk 0:00:09]} 50. Rxd6 {[%clk 0:00:13]}  Qb1 {[%clk 0:00:04]} 51. f4 {[%clk 0:00:10]}  Qxc2+ {[%clk 0:00:04]} 52. f5 {[%clk 0:00:11]}  Qd3 {[%clk 0:00:04]} 53. g4 {[%clk 0:00:10]}  Qe3 {[%clk 0:00:01]} 54. Rd7 {[%clk 0:00:10]}  Qe7 {[%clk 0:00:01]} 55. Nh7+ {[%clk 0:00:09]}  Ke8 {[%clk 0:00:01]} 56. Rxe7+ {[%clk 0:00:09]}  Kxe7 {[%clk 0:00:02]} 57. f6+ {[%clk 0:00:10]}  Ke6 {[%clk 0:00:02]} 58. Ng5+ {[%clk 0:00:08]}  Kd6 {[%clk 0:00:02]} 59. gxh5 {[%clk 0:00:08]}  c5 {[%clk 0:00:02]} 60. dxc5+ {[%clk 0:00:07]}  Kxc5 {[%clk 0:00:03]} 61. f7 {[%clk 0:00:07]}  Kd6 {[%clk 0:00:03]} 62. Kg7 {[%clk 0:00:06]}  Ke7 {[%clk 0:00:04]} 63. h6 {[%clk 0:00:03]}  d4 {[%clk 0:00:04]} 64. Ne4 {[%clk 0:00:02]}  d3 {[%clk 0:00:04]} 65. h7 {[%clk 0:00:03]}  Rf8 {[%clk 0:00:04]} 66. h8=Q {[%clk 0:00:03]}  Rxh8 {[%clk 0:00:04]} 67. Kxh8 {[%clk 0:00:04]}  Kxf7 {[%clk 0:00:05]} 68. Kh7 {[%clk 0:00:04]}  Kf8 {[%clk 0:00:05]} 69. Kg6 {[%clk 0:00:04]}  Kg8 {[%clk 0:00:05]} 70. Nd2 {[%clk 0:00:04]}  Kh8 {[%clk 0:00:05]} 71. h5 {[%clk 0:00:05]}  Kg8 {[%clk 0:00:05]} 72. h6 {[%clk 0:00:06]}  Kh8 {[%clk 0:00:05]} 73. Ne4 {[%clk 0:00:06]}  Kg8 {[%clk 0:00:05]} 74. h7+ {[%clk 0:00:06]} 1-0


[Site "https://www.chess.com"]

[Event "Titled Tuesday Blitz February 15 Late 2022"]
[White "Fedoseev, Vladimir"]
[Black "Gledura, Benjamin"]
[WhiteFideId "24130737"]
[BlackFideId "712779"]
[WhiteElo "2726"]
[BlackElo "2326"]
[Result "1-0"]
[Round "02"]
[TimeControl "180+1"]
[Date "2022.02.15"]
[WhiteClock "0:00:05"]
[BlackClock "0:00:02"]

1. g3 {[%clk 0:03:00]}  d5 {[%clk 0:02:58]} 2. Bg2 {[%clk 0:03:01]}  c6 {[%clk 0:02:59]} 3. Nf3 {[%clk 0:03:01]}  Bg4 {[%clk 0:02:56]} 4. O-O {[%clk 0:03:02]}  Nd7 {[%clk 0:02:56]} 5. d3 {[%clk 0:03:02]}  e5 {[%clk 0:02:51]} 6. Nbd2 {[%clk 0:03:02]}  Bd6 {[%clk 0:02:50]} 7. e4 {[%clk 0:03:02]}  Ne7 {[%clk 0:02:49]} 8. Re1 {[%clk 0:03:03]}  O-O {[%clk 0:02:49]} 9. b3 {[%clk 0:03:02]}  a5 {[%clk 0:02:47]} 10. a3 {[%clk 0:03:02]}  d4 {[%clk 0:02:45]} 11. Qe2 {[%clk 0:02:58]}  a4 {[%clk 0:02:42]} 12. Qf1 {[%clk 0:02:58]}  axb3 {[%clk 0:02:37]} 13. cxb3 {[%clk 0:02:58]}  b5 {[%clk 0:02:30]} 14. Bb2 {[%clk 0:02:54]}  Nc5 {[%clk 0:02:25]} 15. Rec1 {[%clk 0:02:53]}  Nd7 {[%clk 0:01:56]} 16. h3 {[%clk 0:02:43]}  Bh5 {[%clk 0:01:56]} 17. Rc2 {[%clk 0:02:34]}  Ra6 {[%clk 0:01:55]} 18. b4 {[%clk 0:02:32]}  Nb6 {[%clk 0:01:49]} 19. Nb3 {[%clk 0:02:28]}  Na4 {[%clk 0:01:48]} 20. Bc1 {[%clk 0:02:28]}  f6 {[%clk 0:01:47]} 21. Bd2 {[%clk 0:02:26]}  Bf7 {[%clk 0:01:47]} 22. Qb1 {[%clk 0:02:26]}  Qb6 {[%clk 0:01:42]} 23. Nc5 {[%clk 0:02:24]}  Nxc5 {[%clk 0:01:36]} 24. bxc5 {[%clk 0:02:23]}  Bxc5 {[%clk 0:01:36]} 25. Bb4 {[%clk 0:02:23]}  Bxb4 {[%clk 0:01:33]} 26. Qxb4 {[%clk 0:02:24]}  Qa7 {[%clk 0:01:27]} 27. h4 {[%clk 0:02:20]}  Rd8 {[%clk 0:01:24]} 28. Rcc1 {[%clk 0:01:56]}  Ra4 {[%clk 0:01:23]} 29. Qb2 {[%clk 0:01:56]}  Ra8 {[%clk 0:01:20]} 30. Qe2 {[%clk 0:01:44]}  Rxa3 {[%clk 0:01:19]} 31. Rab1 {[%clk 0:01:43]}  Ra2 {[%clk 0:01:18]} 32. Qf1 {[%clk 0:01:43]}  Qa3 {[%clk 0:01:15]} 33. Bh3 {[%clk 0:01:40]}  b4 {[%clk 0:01:08]} 34. Ne1 {[%clk 0:01:31]}  b3 {[%clk 0:01:03]} 35. f4 {[%clk 0:01:31]}  exf4 {[%clk 0:00:58]} 36. Qxf4 {[%clk 0:01:26]}  b2 {[%clk 0:00:55]} 37. Rc2 {[%clk 0:01:26]}  Ng6 {[%clk 0:00:41]} 38. Qf2 {[%clk 0:01:22]}  c5 {[%clk 0:00:20]} 39. Rcxb2 {[%clk 0:01:15]}  Rxb2 {[%clk 0:00:20]} 40. Rxb2 {[%clk 0:01:15]}  Ne5 {[%clk 0:00:20]} 41. Bf1 {[%clk 0:01:12]}  h5 {[%clk 0:00:20]} 42. Rb7 {[%clk 0:01:07]}  Qc3 {[%clk 0:00:19]} 43. Nf3 {[%clk 0:00:34]}  Ra2 {[%clk 0:00:17]} 44. Ng5 {[%clk 0:00:33]}  fxg5 {[%clk 0:00:16]} 45. Qf5 {[%clk 0:00:26]}  Ra8 {[%clk 0:00:15]} 46. Qxe5 {[%clk 0:00:25]}  gxh4 {[%clk 0:00:11]} 47. Rxf7 {[%clk 0:00:20]}  Kxf7 {[%clk 0:00:11]} 48. Qd5+ {[%clk 0:00:20]}  Kg6 {[%clk 0:00:10]} 49. Qxa8 {[%clk 0:00:18]}  hxg3 {[%clk 0:00:10]} 50. Qc6+ {[%clk 0:00:18]}  Kh7 {[%clk 0:00:10]} 51. Qd6 {[%clk 0:00:14]}  Qe1 {[%clk 0:00:04]} 52. Qf4 {[%clk 0:00:15]}  g5 {[%clk 0:00:03]} 53. Qf5+ {[%clk 0:00:14]}  Kh6 {[%clk 0:00:03]} 54. Qf6+ {[%clk 0:00:14]}  Kh7 {[%clk 0:00:03]} 55. Kg2 {[%clk 0:00:13]}  h4 {[%clk 0:00:03]} 56. e5 {[%clk 0:00:12]}  Qd2+ {[%clk 0:00:02]} 57. Kh3 {[%clk 0:00:11]}  Qh2+ {[%clk 0:00:02]} 58. Kg4 {[%clk 0:00:11]}  g2 {[%clk 0:00:03]} 59. Kh5 {[%clk 0:00:11]}  gxf1=Q {[%clk 0:00:02]} 60. Qe7+ {[%clk 0:00:07]}  Kg8 {[%clk 0:00:01]} 61. Kg6 {[%clk 0:00:05]}  Qxd3+ {[%clk 0:00:02]} 62. Kh6 {[%clk 0:00:06]}  Qf5 {[%clk 0:00:02]} 63. Qg7# {[%clk 0:00:05]} 1-0


[Site "https://www.chess.com"]

[Event "Titled Tuesday Blitz February 15 Late 2022"]
[White "Fiorito, Fabian"]
[Black "Krzyzanowski, Marcin"]
[WhiteFideId "100200"]
[BlackFideId "1132199"]
[WhiteElo "2395"]
[BlackElo "2396"]
[Result "0-1"]
[Round "02"]
[TimeControl "180+1"]
[Date "2022.02.16"]
[WhiteClock "0:00:46"]
[BlackClock "0:00:14"]

1. d4 {[%clk 0:03:00]}  Nf6 {[%clk 0:02:59]} 2. Nc3 {[%clk 0:03:01]}  d5 {[%clk 0:02:58]} 3. Bf4 {[%clk 0:03:01]}  a6 {[%clk 0:02:54]} 4. e3 {[%clk 0:03:01]}  e6 {[%clk 0:02:54]} 5. g4 {[%clk 0:03:02]}  c5 {[%clk 0:02:54]} 6. g5 {[%clk 0:03:01]}  Nfd7 {[%clk 0:02:53]} 7. h4 {[%clk 0:03:01]}  Nc6 {[%clk 0:02:52]} 8. Nce2 {[%clk 0:03:02]}  Qb6 {[%clk 0:02:48]} 9. Rb1 {[%clk 0:03:01]}  Qa5+ {[%clk 0:02:46]} 10. c3 {[%clk 0:02:56]}  cxd4 {[%clk 0:02:45]} 11. exd4 {[%clk 0:02:56]}  b5 {[%clk 0:02:35]} 12. Bg2 {[%clk 0:02:50]}  b4 {[%clk 0:02:30]} 13. Nf3 {[%clk 0:02:46]}  Qxa2 {[%clk 0:02:25]} 14. O-O {[%clk 0:02:44]}  Qa5 {[%clk 0:02:25]} 15. h5 {[%clk 0:02:37]}  Be7 {[%clk 0:02:24]} 16. Qd3 {[%clk 0:02:33]}  Qb5 {[%clk 0:02:24]} 17. Qe3 {[%clk 0:02:32]}  g6 {[%clk 0:02:21]} 18. Ng3 {[%clk 0:02:26]}  Na5 {[%clk 0:02:20]} 19. Ne5 {[%clk 0:02:19]}  Nc4 {[%clk 0:02:20]} 20. Nxc4 {[%clk 0:02:19]}  Qxc4 {[%clk 0:02:20]} 21. Be5 {[%clk 0:02:15]}  O-O {[%clk 0:02:14]} 22. hxg6 {[%clk 0:02:06]}  fxg6 {[%clk 0:02:11]} 23. f4 {[%clk 0:02:04]}  Nxe5 {[%clk 0:01:56]} 24. fxe5 {[%clk 0:02:04]}  Bd7 {[%clk 0:01:52]} 25. Bh3 {[%clk 0:02:04]}  bxc3 {[%clk 0:01:51]} 26. bxc3 {[%clk 0:02:04]}  Rac8 {[%clk 0:01:50]} 27. Ne2 {[%clk 0:01:53]}  Bxg5 {[%clk 0:01:45]} 28. Qxg5 {[%clk 0:01:48]}  Qxe2 {[%clk 0:01:45]} 29. Qe7 {[%clk 0:01:36]}  Qe3+ {[%clk 0:01:42]} 30. Kg2 {[%clk 0:01:37]}  Qe4+ {[%clk 0:01:26]} 31. Kg1 {[%clk 0:01:29]}  Qe3+ {[%clk 0:01:11]} 32. Kg2 {[%clk 0:01:28]}  Qd2+ {[%clk 0:01:03]} 33. Kg1 {[%clk 0:01:26]}  Qxc3 {[%clk 0:01:03]} 34. Bxe6+ {[%clk 0:01:18]}  Bxe6 {[%clk 0:01:02]} 35. Qxe6+ {[%clk 0:01:19]}  Kh8 {[%clk 0:01:01]} 36. Qxd5 {[%clk 0:01:17]}  Qg3+ {[%clk 0:01:00]} 37. Kh1 {[%clk 0:01:17]}  Qh3+ {[%clk 0:00:52]} 38. Kg1 {[%clk 0:01:16]}  Qg4+ {[%clk 0:00:50]} 39. Kh1 {[%clk 0:01:13]}  Rcd8 {[%clk 0:00:43]} 40. Qc5 {[%clk 0:01:08]}  Rf3 {[%clk 0:00:35]} 41. Rxf3 {[%clk 0:01:00]}  Qxf3+ {[%clk 0:00:36]} 42. Kh2 {[%clk 0:01:00]}  Qe2+ {[%clk 0:00:35]} 43. Kg1 {[%clk 0:00:58]}  Qe3+ {[%clk 0:00:35]} 44. Kh2 {[%clk 0:00:58]}  Qf4+ {[%clk 0:00:25]} 45. Kg1 {[%clk 0:00:56]}  Rf8 {[%clk 0:00:20]} 46. e6 {[%clk 0:00:47]}  Qg3+ {[%clk 0:00:20]} 47. Kh1 {[%clk 0:00:48]}  Qf3+ {[%clk 0:00:18]} 48. Kg1 {[%clk 0:00:48]}  Qe3+ {[%clk 0:00:18]} 49. Kh1 {[%clk 0:00:46]}  Qe4+ {[%clk 0:00:18]} 50. Kg1 {[%clk 0:00:46]}  Qxb1+ {[%clk 0:00:14]} 51. Kh2 {[%clk 0:00:46]}  Rf2+ {[%clk 0:00:13]} 52. Kg3 {[%clk 0:00:46]}  Qg1+ {[%clk 0:00:13]} 53. Kh4 {[%clk 0:00:46]}  Rh2# {[%clk 0:00:14]} 0-1


[Site "https://www.chess.com"]